Cogmind - Beta 12 X6 @@@ ROGUE MODE // 2023.02.23 @ 21:16:31 Player: ArabianSandBoa Result: Destroyed self with Mini Grenade Launcher Performance ------------- Evolutions (0) 0 Regions Visited (2) 400 Robots Destroyed (22) 110 Value Destroyed (403) 403 Prototype IDs (1) 20 Alien Tech Used (0) 0 Bonus (0) 0 TOTAL SCORE: 933 Bonus ------- None Cogmind --------- Core Integrity 0/250 Matter 83/300 Energy 273/280 System Corruption 0% Temperature Cool (0) Movement Rolling (125) Ox3 Location -10/Mines Parts ------- > --- POWER (1) -------- Cooled Ion Engine > --- PROPULSION (2) --- Wheel > --- UTILITY (2) ------ Large Storage Unit Structural Scanner > --- WEAPON (2) ------- Light Cannon Mini Grenade Launcher > --- INVENTORY (15) --- Ion Engine Light Ion Engine Cooled Ion Engine Light Treads Light Treads Wheel Wheel Large Storage Unit High-capacity Battery (250) Targeting Computer Targeting Computer Mini Grenade Launcher Plasma Cutter Peak State ------------ > --- POWER ------------ Cooled Ion Engine > --- PROPULSION ------- Wheel Wheel > --- UTILITY ---------- Large Storage Unit Structural Scanner > --- WEAPON ----------- Assault Rifle Mini Grenade Launcher > --- INVENTORY -------- Ion Engine Light Ion Engine Light Treads Light Treads Large Storage Unit High-capacity Battery Small Laser Light Assault Rifle Light Assault Rifle Plasma Cutter [Rating: 11] Favorites ----------- Power Ion Engine Engine Ion Engine Propulsion Wheel Leg Aluminum Leg Wheel Wheel Utility Large Storage Unit Device Structural Scanner Storage Large Storage Unit Weapon Assault Rifle Energy Gun EM Pulse Gun Ballistic Gun Assault Rifle Ballistic Cannon Light Cannon Launcher Mini Grenade Launcher Build | -11 -10 -10 ------- Run | Jun Mat Min Slots Evolved . | . . . Power . | . . . Propulsion . | . . . Utility . | . . . Weapon . | . . . Parts Attached 14 | 3 9 2 Power 1 | . 1 . Engine 1 | . 1 . Core . | . . . Reactor . | . . . Propulsion 4 | 2 2 . Treads . | . . . Leg . | . . . Wheel 4 | 2 2 . Hover . | . . . Flight . | . . . Utility 3 | . 3 . Device 1 | . 1 . Storage 2 | . 2 . Processor . | . . . Hackware . | . . . Protection . | . . . Artifact . | . . . Weapon 6 | 1 3 2 Energy Gun 1 | 1 . . Energy Cannon . | . . . Ballistic Gun 1 | . 1 . Ballistic Cannon 1 | . . 1 Launcher 3 | . 2 1 Special Weapon . | . . . Impact Weapon . | . . . Slashing Weapon . | . . . Piercing Weapon . | . . . Special Melee Weapon . | . . . Unidentified Prototypes 1 | . 1 . Parts Lost 4 | . 2 2 Power . | . . . Propulsion 2 | . 1 1 Utility . | . . . Weapon 2 | . 1 1 Highest Loss Streak 2 | . 1 2 To Critical Strikes . | . . . Average Slot Usage (%) 95 | . 95 100 Engine 14 | . 14 14 Wheel 27 | . 27 28 Device 8 | . 8 14 Storage 19 | . 19 14 Energy Gun 2 | . 2 . Ballistic Gun 15 | . 15 14 Launcher 7 | . 6 14 Naked Turns . | . . . Heaviest Build 48 | 13 48 32 Greatest Support 20 | 20 20 20 Greatest Overweight (x) 3 | . 3 1 Average Overweight (x) 1 | . 1 1 Largest Inventory Capacity 15 | 8 15 15 Average Capacity 14 | 8 14 15 Most Carried 15 | 6 15 14 Average Carried 10 | 4 9 13 Final Capacity 15 | 8 15 15 Final Carried 14 | 4 14 13 Class Distribution -------------------- 100% | Mutant Dominant Class ---------------- Mutant | -10/Materials Mutant | -10/Mines Resources | -11 -10 -10 ----------- Run | Jun Mat Min Matter Collected 400 | 200 200 . Remotely . | . . . Salvage Created 443 | . 443 . Parts 51 | . 51 . Haulers Intercepted 2 | . 2 . Recyclers Shooed . | . . . Parts Field Recycled . | . . . Retrieved Matter . | . . . Parts Self-Destructed . | . . . Prevented . | . . . Kills | -11 -10 -10 ------- Run | Jun Mat Min Combat Hostiles Destroyed 14 | . 14 . Guns 4 | . 4 . AOE 10 | . 10 . Classes Destroyed 6 | . 6 . Worker 2 | . 2 . Builder 2 | . 2 . Hauler 2 | . 2 . Watcher 2 | . 2 . Swarmer 6 | . 6 . Grunt 8 | . 8 . Best Kill Streak 5 | . 5 . Combat Bots Only 5 | . 5 . Max Kills in Single Turn 2 | . 2 . Gunslinging . | . . . Exploded 2 | . 2 . Melee . | . . . Uniques/NPCs Destroyed . | . . . Combat | -11 -10 -10 -------- Run | Jun Mat Min Damage Taken 769 | . 438 331 Core 253 | . 96 157 Absorbed by Shields . | . . . Core Remaining (%) 100 | 100 . . Volleys Fired 71 | . 68 3 Largest 2 | . 2 2 Hottest 65 | . 60 65 Shots Fired 108 | . 103 5 Gun 91 | . 89 2 Cannon 2 | . . 2 Launcher 15 | . 14 1 Special . | . . . Kinetic 77 | . 73 4 Thermal . | . . . Explosive 15 | . 14 1 Electromagnetic 16 | . 16 . Robot Hit Streak 12 | . 12 1 Robot Miss Streak 5 | . 5 1 Penetration Max . | . . . Secondary Targets . | . . . Shots Hit Robots 56 | . 54 2 Core Hits 37 | . 34 3 Critical Kills . | . . . Critical Parts Destroyed 2 | . 2 . Critical Strikes 2 | . 2 . Destroy 2 | . 2 . Melee Attacks . | . . . Impact . | . . . Slashing . | . . . Piercing . | . . . Sneak Attacks . | . . . Combat Hostiles . | . . . Follow-up Attacks . | . . . Damage Inflicted 1374 | . 1309 65 Guns 511 | . 500 11 Cannons 33 | . . 33 Explosions 830 | . 809 21 Melee . | . . . Ramming . | . . . Kinetic 468 | . 424 44 Thermal . | . . . Explosive 830 | . 809 21 Electromagnetic 76 | . 76 . Impact . | . . . Slashing . | . . . Piercing . | . . . Highest Corruption . | . . . Average Corruption . | . . . Corruption Purged . | . . . Corruption Blocked . | . . . Overload Shots . | . . . Overflow Damage 17 | . 17 . Projectiles . | . . . Explosions 17 | . 17 . Melee . | . . . Knockbacks 1 | . . 1 Impact . | . . . Kinetic 1 | . . 1 Secondary . | . . . Self-Inflicted Damage 93 | . 75 18 Shots 4 | . 3 1 Rammed 1 | . 1 . Targets Rammed 1 | . 1 . Kicked . | . . . Crushed . | . . . Highest Temperature 80 | . 80 . Average Temperature 33 | . 33 . Received Heat Transfer 72 | . 72 . Siege Activations . | . . . Robots Corrupted . | . . . Combat Hostiles . | . . . Parts Fried . | . . . Impact Corruptions . | . . . Robots Melted . | . . . Combat Hostiles . | . . . Parts Melted . | . . . Heat Transferred . | . . . Parts Sabotaged . | . . . Parts Stolen . | . . . Parts Stripped . | . . . Power Chain Reactions . | . . . Missiles Intercepted . | . . . Alert | -11 -10 -10 ------- Run | Jun Mat Min Peak Influence 308 | . 308 . Initial . | . . . Average 67 | . 71 . Maximum Alert Level 1 | . 1 . Low Security (%) 95 | 100 95 100 Level 1 4 | . 4 . Level 2 . | . . . Level 3 . | . . . Level 4 . | . . . Level 5 . | . . . High Security . | . . . Max Security . | . . . Squads Dispatched 2 | . 2 . Investigation 2 | . 2 . Extermination . | . . . Reinforcement . | . . . Assault . | . . . Garrison . | . . . Intercept . | . . . Searches Triggered . | . . . Construction Impeded . | . . . Haulers Reinforced . | . . . Active Scanning Responses . | . . . Cargo Convoy Interrupts . | . . . Stealth | -11 -10 -10 --------- Run | Jun Mat Min Distress Signals 1 | . 1 . Communications Jammed . | . . . Distress Signals . | . . . Times Spotted 24 | . 22 2 Peak Tracking Total 5 | . 5 2 Tactical Retreats 1 | . 1 . Traps | -11 -10 -10 ------- Run | Jun Mat Min Traps Triggered 1 | . 1 . Indirectly . | . . . Trap Hack Attempts . | . . . Triggered . | . . . Disarmed . | . . . Reprogrammed . | . . . Reused . | . . . Traps Extracted . | . . . Installed . | . . . Triggered . | . . . Machines | -11 -10 -10 ---------- Run | Jun Mat Min Machines Disabled 1 | . 1 . Max in Single Turn 1 | . 1 . Machines Repaired . | . . . Machines Sabotaged . | . . . Overloaded Fab Kills . | . . . Hacking | -11 -10 -10 --------- Run | Jun Mat Min Machines Accessed 9 | . 9 . Terminals 7 | . 7 . Fabricators . | . . . Repair Stations . | . . . Recycling Units 2 | . 2 . Scanalyzers . | . . . Garrison Access . | . . . Total Hacks 35 | . 35 . Successful 21 | . 21 . Failed 14 | . 14 . Catastrophic 2 | . 2 . Database Lockouts . | . . . Manual 20 | . 20 . Terminals 25 | . 25 . Fabricators . | . . . Repair Stations . | . . . Recycling Units 10 | . 10 . Scanalyzers . | . . . Garrison Access . | . . . Terminal Hacks 12 | . 12 . Part Schematic 1 | . 1 . Robot Analysis 5 | . 5 . Unreport Threat 2 | . 2 . Locate Traps 1 | . 1 . Hauler Manifests 2 | . 2 . Zone Layout 1 | . 1 . Fabricator Hacks . | . . . Repair Station Hacks . | . . . Recycling Unit Hacks 2 | . 2 . Report Inventory 2 | . 2 . Scanalyzer . | . . . Garrison Access Hacks . | . . . Unauthorized Hacks 7 | . 7 . Terminals 1 | . 1 . Botnet 1 | . 1 . Fabricators . | . . . Repair Stations . | . . . Recycling Units 6 | . 6 . Monitor 2 | . 2 . Reject 2 | . 2 . Mask 2 | . 2 . Scanalyzers . | . . . Garrison Access . | . . . Data Cores Recovered . | . . . Used . | . . . Hacking Detections 7 | . 7 . Full Trace Events 3 | . 3 . Feedback Events . | . . . Feedback Blocked . | . . . Robot Schematics Acquired . | . . . Robots Built . | . . . Authchips . | . . . Time . | . . . Total Robot Build Rating . | . . . Part Schematics Acquired 1 | . 1 . Parts Built . | . . . Authchips . | . . . Time . | . . . Total Part Build Rating . | . . . Parts Repaired . | . . . Time . | . . . Parts Recycled . | . . . Recycled Matter . | . . . Retrieved Matter . | . . . Retrieved Components . | . . . Parts Scanalyzed . | . . . Part Schematics Acquired . | . . . Parts Damaged . | . . . Bothacking | -11 -10 -10 ------------ Run | Jun Mat Min Used RIF Installer . | . . . Robots Hacked . | . . . Non-combat . | . . . Combat . | . . . Robot Hacks Applied . | . . . Relay Couplers Released . | . . . Fabnet Peak Effective % . | . . . Robots Rewired . | . . . Allies Hacked . | . . . Hacks Repelled . | . . . Allies | -11 -10 -10 -------- Run | Jun Mat Min Total Allies . | . . . Largest Group . | . . . Highest-Rated Group . | . . . Highest-Rated Ally . | . . . Total Orders . | . . . Ally Attacks . | . . . Total Damage . | . . . Kills . | . . . Allies Corrupted . | . . . Allies Melted . | . . . Intel | -11 -10 -10 ------- Run | Jun Mat Min Robot Analysis Total 5 | . 5 . Derelict Logs Recovered . | . . . Drone Launches . | . . . Drone Recoveries . | . . . Exploration | -11 -10 -10 ------------- Run | Jun Mat Min Turns Passed 937 | 9 885 43 Spaces Moved 676 | 1 655 20 Core . | . . . Treads . | . . . Legs . | . . . Wheels 676 | 1 655 20 Hover . | . . . Flight . | . . . Fastest Speed 80 | 80 80 95 Average Speed 101 | 80 101 95 Slowest Speed 125 | 80 125 95 Overloaded Moves . | . . . Propulsion Burnouts . | . . . Robots Hopped . | . . . Cave-ins Triggered . | . . . Exploration Rate (%) 36 | 2 98 8 Regions Visited 2 Branch Regions 1 Pre-discovered Areas . | . . . Known Exits Taken . | . . . Unknown Exits Taken 2 | 1 1 . Scrap Searched . | . . . Spaces Dug . | . . . Terrain Destroyed 88 | . 82 6 Melee . | . . . Projectile . | . . . AOE 88 | . 82 6 Terrain Rammed . | . . . Walls Destroyed . | . . . Machines Disabled . | . . . Actions | -11 -10 -10 --------- Run | Jun Mat Min Total 831 | 9 782 40 Wait 49 | 4 30 15 Move 674 | . 654 20 Hop . | . . . Pick Up 13 | . 13 . Fast Attach 5 | . 5 . Attach 5 | 2 2 1 Detach 1 | . 1 . Swap 4 | 1 2 1 Drop 8 | 2 6 . Fire 71 | . 68 3 Melee . | . . . Ram 1 | . 1 . Kick . | . . . Crush . | . . . Escape Stasis . | . . . Rewire . | . . . Trap . | . . . Miscellaneous . | . . . Route ------- -11/Junkyard -10/Materials (discovered 4 exits: [*Mat x3] / [*Min]) -10/Mines History --------- Turn | Location | Event 10 | -11/Junkyard | Discovered new exit (range 0) 10 | -11/Junkyard | Entered Materials 76 | -10/Materials | Discovered new exit (range 15) 300 | -10/Materials | Discovered new exit (range 6) 318 | -10/Materials | Build established: Mutant 624 | -10/Materials | Discovered new exit (range 12) 817 | -10/Materials | Discovered new exit (range 15) 895 | -10/Materials | Entered Mines 896 | -10/Mines | Assembled infested the area 936 | -10/Mines | Core integrity fell below 50% 938 | -10/Mines | Core integrity fell below 20% 938 | -10/Mines | Destroyed self with Mini Grenade Launcher Last Messages --------------- 00711_ Acquired 29 matter. 00711_ U-05 Engineer lays Concrete. 00729_ The unstable cave ceiling collapses. 00794_ W-16 Scout destroyed. 00799_ >> MONITOR: Recycling Unit M002 accepting Flight Unit (70%). 00802_ >> MONITOR: Recycling Unit M002 accepting Beam Cannon (100%). 00803_ Acquired 13 matter. 00805_ >> MONITOR: Recycling Unit M002 accepting Beam Cannon (100%). 00817_ EXIT=FOUND LOCATION=UNKNOWN GOAL=ESCAPE 00896_ ALERT: Infestation in the mines, dispatching Demolisher response squad. 00899_ T-07 Excavator is excavating. 00929_ C-30 ARC bursts open, deploying its payload. 00929_ D-53 Grenadier unfolds itself. 00931_ D-53 Grenadier knocked back. 00931_ T-07 Excavator destroyed. 00935_ Wheel destroyed. 00937_ Assault Rifle destroyed. Map ----- +----------------------------------------------------+ | ?????????????????????????????????????????????????? | | ?????????????????????????????????????????????????? | | ?????????????????????????????????????????????????? | | ?????????????????????????????????????????????????? | | ?????????????????????????????????????????????????? | | ?????????????????????????????????????????????????? | | ?????????????????????????????????????????????????? | | ?????????????????????????????????????????????????? | | ?????????????????????????????????????????????????? | | ?????????????????????????????????????????????????? | | ????????????????????????? ?## ???????????????????? | | ????????????????????????? ?## ???????????????????? | | ????????????????????????? ? ???????????????????? | | ????????????????????????? ? ??? #???????????????? | | ????????????????????????? ??? ###??????????????? | | ????????????????????????? ???? ####?????????????? | | ???????????????????????# ?? ###?????????????? | | ?????????????????????#### ##?? ##?????????????? | | ???????????????????###### ### ##?????????????? | | ??????????????????##### # ### #?????????????? | | ?????????#####????### d """???????????????? | | ?????????#####????## """ ??????????????? | | ?????????## ##????### """ ??????????????? | | ?????????## ######## d ?????????????????? | | ?????????## ######## # ?????????????? | | ?????????## @ ##?????????????????? | | ?????????## ##?????????????????? | | ?????????##### ### ##?????????????????? | | ?????????###### ##### ###?????????????????? | | ????????????########### #####?????????????????? | | ?????????????######?###########??????????????????? | | ?????????????????????########????????????????????? | | | | | | | | | | | | | | | | | | | | | | | | | | | | | | | | | | | | | +----------------------------------------------------+ Best States ------------- Heat Dissipation 25 Energy Generation 14 Energy Capacity 280 Matter Stores 300 Matter Capacity 300 Sight Range 16 Terrain Scan Density 10 Evasion (%) 44 Item Schematics ----------------- Cargo Storage Unit | -10/Materials | Hacked Robot Schematics ------------------ None Fabricated ------------ Nothing Alien Tech Used ----------------- None Achievements -------------- None Challenges ------------ None Game ------ Seed DispersionBlastFalx Manual? 0 Play Time 00:11:01 Cumulative 370.6 hours Start 2023.02.23 @ 21:01:39 End 2023.02.23 @ 21:16:31 Sessions 1 Manual Loads 0 Difficulty Rogue Special Mode None Game No. 431 Rogue 431 Adventurer 0 Explorer 0 Win Type - Total 0 Types 0/0/0/0/0/0/0/0/0 Lore% 51 Gallery% 74 Achievement% 61 Wizard Run 0 Options --------- ASCII 0 Keyboard 0 Movement Mouse Keybinds 0 Fullscreen 2 Font 24/Smallcaps Map View 76x50 Tactical HUD 1 Map Filters NONE Filters NONE Steam 1 RUN: 09a9b52b-7099-450c-b726-9dec95f935a0